bitfinex-derivatives/quotes_BNBF0:USTF0_20260110
["timestamp","ask_amount","ask_price","bid_price","bid_amount"]
[1768071036482,0.19051217,913.75,912.7,0.68751303]
[1768071036682,2.72679797,914.3,912.71,0.68751303]
[1768071036879,0.19051529,913.75,912.72,0.68751303]
[1768071037083,0.19051529,913.75,912.73,0.68751303]
[1768071037379,0.19051373,913.75,912.58,1.98]
[1768071037580,0.19051373,913.75,912.59,0.68800629]
[1768071037779,0.19051373,913.75,912.6,0.68800629]
[1768071037979,0.19051373,913.75,912.61,0.68800629]
[1768071038183,0.19051373,913.75,912.62,0.68800629]
[1768071038383,0.19051373,913.75,912.63,0.68800629]
[1768071038579,0.19051373,913.75,912.64,0.68800629]
[1768071038879,0.19051373,913.75,912.65,0.68800629]
[1768071039184,0.19051373,913.75,912.66,0.68800629]
[1768071039479,0.19051373,913.75,912.67,0.68800629]
[1768071039780,0.19051373,913.75,912.68,0.68800629]
[1768071039980,0.19051373,913.75,912.69,0.68800629]
[1768071040181,0.19051373,913.75,912.7,0.68800629]
[1768071040384,0.19051373,913.75,912.71,0.68800629]
[1768071040679,0.19051373,913.75,912.72,0.68800629]
[1768071040884,0.19051373,913.75,912.58,1.98]
[1768071041084,0.19051373,913.75,912.59,0.68759687]
[1768071041285,0.19051373,913.75,912.6,0.68759687]
[1768071041484,0.19051373,913.75,912.61,0.68759687]
[1768071041685,0.19051373,913.75,912.62,0.68759687]
[1768071041881,0.19051373,913.75,912.63,0.68759687]
[1768071042080,0.19051373,913.75,912.64,0.68759687]
[1768071042385,0.19051373,913.75,912.65,0.68759687]
[1768071042585,0.19051373,913.75,912.66,0.68759687]
[1768071042786,0.19051373,913.75,912.67,0.68759687]
[1768071042982,0.19051373,913.75,912.68,0.68759687]
[1768071043182,0.19051373,913.75,912.69,0.68759687]
[1768071043385,0.19051373,913.75,912.7,0.68759687]
[1768071043685,0.19051373,913.75,912.71,0.68759687]
[1768071043884,0.19051373,913.75,912.58,1.98]
[1768071044086,0.19051373,913.75,912.59,0.68783748]
[1768071044284,0.19051373,913.75,912.6,0.68783748]
[1768071044487,0.19051373,913.75,912.61,0.68783748]
[1768071044687,0.19051373,913.75,912.62,0.68783748]
[1768071044988,0.19051373,913.75,912.63,0.68783748]
[1768071045184,0.19051373,913.75,912.64,0.68783748]
[1768071045385,0.19051373,913.75,912.65,0.68783748]
[1768071045585,0.19051373,913.75,912.66,0.68777083]
[1768071045788,0.19051373,913.75,912.67,0.68777083]
[1768071045984,0.19051373,913.75,912.68,0.68777083]
[1768071046189,0.19051373,913.75,912.69,0.68777083]
[1768071046387,0.19051373,913.75,912.7,0.68777083]
[1768071046690,0.19051373,913.75,912.71,0.68777083]
[1768071046890,0.19051373,913.75,912.72,0.68777083]
[1768071047190,0.19051373,913.75,912.73,0.68777083]
[1768071047388,0.19051373,913.75,912.74,0.68777083]
[1768071047586,0.19051373,913.75,912.75,0.68777083]
[1768071047887,0.19051373,913.75,912.76,0.68777083]
[1768071048087,0.19051373,913.75,912.77,0.68777083]
[1768071048290,0.19051373,913.75,912.78,0.68777083]
[1768071048584,0.19051373,913.75,912.79,0.68777083]
[1768071048788,0.19051373,913.75,912.8,0.68777083]
[1768071048986,0.19051373,913.75,912.58,1.98]
[1768071048987,0.19051373,913.75,912.81,0.68777083]
[1768071049190,0.19051373,913.75,912.58,1.98]
[1768071049387,0.19051373,913.75,912.59,0.68768723]
[1768071049587,0.19051373,913.75,912.6,0.68768723]
[1768071049891,0.19051373,913.75,912.58,1.98]
[1768071049892,0.19051373,913.75,912.61,0.68768723]
[1768071050090,0.19051373,913.75,912.62,0.68768723]
[1768071050292,0.19051373,913.75,912.63,0.68768723]
[1768071050493,0.19051373,913.75,912.64,0.68768723]
[1768071050693,0.19051373,913.75,912.65,0.68768723]
[1768071050894,0.19051373,913.75,912.66,0.68768723]
[1768071051192,0.19051373,913.75,912.67,0.68768723]
[1768071051390,0.19051373,913.75,912.68,0.68768723]
[1768071051688,0.19051373,913.75,912.69,0.68768723]
[1768071051890,0.19051373,913.75,912.7,0.68768723]
[1768071052096,0.19051373,913.75,912.71,0.68768723]
[1768071052291,0.19051373,913.75,912.72,0.68768723]
[1768071052595,0.19051373,913.75,912.73,0.68768723]
[1768071052896,0.19051373,913.75,912.74,0.68768723]
[1768071053193,0.19051373,913.75,912.58,1.98]
[1768071053194,0.19051373,913.75,912.75,0.68768723]
[1768071053391,0.19051373,913.75,912.76,0.68768723]
[1768071053594,0.19051373,913.75,912.77,0.68768723]
[1768071053796,0.19051373,913.75,912.78,0.68768723]
[1768071054095,0.19051373,913.75,912.58,1.98]
[1768071054096,0.19051373,913.75,912.79,0.68768723]
[1768071054295,0.19051373,913.75,912.57,7.21688562]
[1768071054595,0.19051373,913.75,912.58,0.68768538]
[1768071054794,0.19051373,913.75,912.59,0.68768538]
[1768071054995,0.19051373,913.75,912.57,7.21688562]
[1768071054996,0.19051373,913.75,912.6,0.68768538]
[1768071055290,0.19051373,913.75,912.61,0.68768538]
[1768071055490,0.19051373,913.75,912.62,0.68768538]
[1768071055694,0.19051373,913.75,912.63,0.68768538]
[1768071055894,0.19051373,913.75,912.64,0.68768538]
[1768071056190,0.19051373,913.75,912.65,0.68768538]
[1768071056390,0.19051373,913.75,912.66,0.68768538]
[1768071056594,0.19051373,913.75,912.67,0.68768538]
[1768071056790,0.19051373,913.75,912.68,0.68768538]
[1768071056995,0.19051373,913.75,912.69,0.68768538]
[1768071057193,0.19051373,913.75,912.57,7.21688562]
[1768071057194,0.19051373,913.75,912.7,0.68768538]
[1768071057392,0.19051373,913.75,912.71,0.68768538]
[1768071057594,0.19051373,913.75,912.72,0.68768538]
[1768071057791,0.19051373,913.75,912.73,0.68768538]
[1768071058101,0.19051373,913.75,912.7,2.174]
[1768071062895,0.19051373,913.75,912.71,0.68778533]
[1768071063099,0.19051373,913.75,912.7,2.174]
[1768071063400,0.19051373,913.75,912.71,0.68779847]
[1768071063600,0.19051373,913.75,912.7,2.174]
[1768071063798,0.19051373,913.75,912.71,0.68779001]
[1768071063999,0.19051373,913.75,912.7,2.174]
[1768071064199,0.19051373,913.75,912.71,0.68780208]
[1768071064399,0.19051373,913.75,912.72,0.68780208]
[1768071064595,0.19051373,913.75,912.7,2.174]
[1768071064800,0.19051373,913.75,912.71,0.68781685]
[1768071065001,0.19051373,913.75,912.72,0.68781685]
[1768071065196,0.19051373,913.75,912.7,2.174]
[1768071065397,0.19051373,913.75,912.71,0.68784552]
[1768071065602,0.19051373,913.75,912.72,0.68784552]
[1768071065799,0.19051373,913.75,912.73,0.6878299]
[1768071066000,0.19051373,913.75,912.74,0.68781429]
[1768071066299,0.19051373,913.75,912.7,2.174]
[1768071066599,0.19051373,913.75,912.71,0.68784714]
[1768071066804,0.19051373,913.75,912.72,0.68784714]
[1768071067103,0.19051373,913.75,912.73,0.68784714]
[1768071067300,0.19051373,913.75,912.74,0.68784714]
[1768071067505,0.19051373,913.75,912.7,2.174]
[1768071067805,0.19051373,913.75,912.71,0.68788215]
[1768071068003,0.19051373,913.75,912.72,0.68788215]
[1768071068204,0.19051373,913.75,912.73,0.68788215]
[1768071068401,0.19051373,913.75,912.74,0.68788215]
[1768071068705,0.19051373,913.75,912.75,0.68788215]
[1768071068906,0.19051373,913.75,912.57,7.21688562]
[1768071069103,0.19051373,913.75,912.58,0.68791969]
[1768071069302,0.19051373,913.75,912.59,0.68791969]
[1768071069500,0.19051373,913.75,912.6,0.68791969]
[1768071069701,0.19051373,913.75,912.57,7.21688562]
[1768071069702,0.19051373,913.75,912.61,0.68791969]
[1768071069903,0.19051373,913.75,912.62,0.68791969]
[1768071070102,0.19051373,913.75,912.63,0.68791969]
[1768071070302,0.19051373,913.75,912.64,0.68791969]
[1768071070506,0.19051373,913.75,912.65,0.68791969]
[1768071070703,0.19051373,913.75,912.66,0.68791969]
[1768071071002,0.19051373,913.75,912.67,0.68791969]
[1768071071306,0.19051373,913.75,912.68,0.68791969]
[1768071071606,0.19051373,913.75,912.69,0.68791969]
[1768071071901,0.19051373,913.75,912.7,0.68791969]
[1768071072102,0.19051373,913.75,912.67,1.506]
[1768071072103,0.19051373,913.75,912.71,0.68791969]
[1768071072306,0.19051373,913.75,912.72,0.68791969]
[1768071072606,0.19051373,913.75,912.73,0.68791969]
[1768071072803,0.19051373,913.75,912.74,0.68791969]
[1768071073003,0.19051373,913.75,912.67,1.506]
[1768071073207,0.19051373,913.75,912.68,0.68766956]
[1768071073404,0.19051373,913.75,912.69,0.68766956]
[1768071073607,0.19051373,913.75,912.7,0.68766956]
[1768071073907,0.19051373,913.75,912.71,0.68766956]
[1768071074106,0.19051373,913.75,912.72,0.68766956]
[1768071074306,0.19051373,913.75,912.73,0.68766956]
[1768071074507,0.19051373,913.75,912.74,0.68766956]
[1768071074804,0.19051373,913.75,912.67,1.506]
[1768071075007,0.19051373,913.75,912.68,0.68766571]
[1768071075303,0.19051373,913.75,912.69,0.68766571]
[1768071075504,0.19051373,913.75,912.67,1.506]
[1768071075505,0.19051373,913.75,912.7,0.68766571]
[1768071075704,0.19051373,913.75,912.71,0.68766571]
[1768071076009,0.19051373,913.75,912.67,1.506]
[1768071086112,0.19051373,913.75,912.68,0.68760941]
[1768071086313,0.19051373,913.75,912.69,0.68760941]
[1768071086617,0.19051373,913.75,912.7,0.68760941]
[1768071086813,0.19051373,913.75,912.71,0.68760941]
[1768071087014,0.19051373,913.75,912.72,0.68760941]
[1768071087215,0.19051373,913.75,912.67,1.506]
[1768071087418,0.19051373,913.75,912.68,0.68764107]
[1768071087618,0.19051373,913.75,912.69,0.68764107]
[1768071087818,0.19051373,913.75,912.7,0.68764107]
[1768071088116,0.19051373,913.75,912.71,0.68764107]
[1768071088316,0.19051373,913.75,912.72,0.68764107]
[1768071088516,0.19051373,913.75,912.67,1.506]
[1768071088812,0.19051373,913.75,912.68,0.68766014]
[1768071089014,0.19051373,913.75,912.69,0.68766014]
[1768071089216,0.19051373,913.75,912.7,0.68766014]
[1768071089417,0.19051373,913.75,912.71,0.68766014]
[1768071089615,0.19051373,913.75,912.72,0.68766014]
[1768071089818,0.19051373,913.75,912.73,0.68766014]
[1768071090015,0.19051373,913.75,912.67,1.506]
[1768071090218,0.19051373,913.75,912.68,0.68768936]
[1768071090419,0.19051373,913.75,912.69,0.68768936]
[1768071090613,0.19051373,913.75,912.7,0.68768936]
[1768071090818,0.19051373,913.75,912.71,0.68768936]
[1768071091015,0.19051373,913.75,912.72,0.68768936]
[1768071091219,0.19051373,913.75,912.73,0.68768936]
[1768071091516,0.19051373,913.75,912.67,1.506]
[1768071091821,0.19051373,913.75,912.68,0.68773197]
[1768071092119,0.19051373,913.75,912.69,0.68773197]
[1768071092415,0.19051373,913.75,912.7,0.68773197]
[1768071092619,0.19051373,913.75,912.71,0.68773197]
[1768071092817,0.19051373,913.75,912.72,0.68773197]
[1768071093017,0.19051373,913.75,912.73,0.68773197]
[1768071093217,0.19051373,913.75,912.67,1.506]
[1768071093417,0.19051373,913.75,912.68,0.68779372]
[1768071093616,0.19051373,913.75,912.69,0.68779372]
[1768071093818,0.19051373,913.75,912.7,0.68779372]
[1768071094016,0.19051373,913.75,912.71,0.68779372]
[1768071094219,0.19051373,913.75,912.72,0.68779372]
[1768071094418,0.19051373,913.75,912.73,0.68779372]
[1768071094622,0.19051373,913.75,912.57,7.21688562]
[1768071094823,0.19051373,913.75,912.58,0.68781884]
[1768071095021,0.19051373,913.75,912.59,0.68781884]
[1768071095219,0.19051373,913.75,912.6,0.68781884]
[1768071095421,0.19051373,913.75,912.61,0.68781884]
[1768071095627,0.19051373,913.75,912.62,0.68781884]
[1768071095927,0.19051373,913.75,912.63,0.68781884]
[1768071096224,0.19051373,913.75,912.64,0.68781884]
[1768071096426,0.19051373,913.75,912.65,0.68781884]
[1768071096626,0.19051373,913.75,912.66,0.68781884]
[1768071096826,0.19051373,913.75,912.67,0.68781884]
[1768071097024,0.19051373,913.75,912.68,0.68781884]
[1768071097227,0.19051373,913.75,912.69,0.68781884]
[1768071097427,0.19051373,913.75,912.7,0.68781884]
[1768071097628,0.19051373,913.75,912.71,0.68781884]
[1768071097829,0.19051373,913.75,912.72,0.68781884]
[1768071098025,0.19051373,913.75,912.62,1.641]
[1768071098026,0.19051373,913.75,912.73,0.68781884]
[1768071098326,0.19051373,913.75,912.74,0.68781884]
[1768071098524,0.19051373,913.75,912.62,1.641]
[1768071098730,0.19051373,913.75,912.63,0.68797418]
[1768071098926,0.19051373,913.75,912.64,0.68797418]
[1768071099227,0.19051373,913.75,912.65,0.68797418]
[1768071099429,0.19051373,913.75,912.62,1.641]
[1768071099430,0.19051373,913.75,912.66,0.68797418]
[1768071099631,0.19051373,913.75,912.67,0.68797418]
[1768071099830,0.19051373,913.75,912.68,0.68797418]
[1768071100032,0.19051373,913.75,912.69,0.68797418]
[1768071100228,0.19051373,913.75,912.7,0.68797418]
[1768071100432,0.19051373,913.75,912.71,0.68797418]
[1768071100628,0.19051373,913.75,912.72,0.68797418]
[1768071100930,0.19051373,913.75,912.73,0.68797418]
[1768071101128,0.19051373,913.75,912.74,0.68797418]
[1768071101430,0.19051373,913.75,912.75,0.68797418]
[1768071101627,0.19051373,913.75,912.62,1.641]
[1768071101928,0.19051373,913.75,912.63,0.68887913]
[1768071102129,0.19051373,913.75,912.64,0.68887913]
[1768071102329,0.19051373,913.75,912.65,0.68887913]
[1768071102528,0.19051373,913.75,912.66,0.68887913]
[1768071102732,0.19051373,913.75,912.67,0.68887913]
[1768071102927,0.19051373,913.75,912.68,0.68887913]
[1768071103128,0.19051373,913.75,912.69,0.68887913]
[1768071103333,0.19051373,913.75,912.7,0.68887913]
[1768071103533,0.19051373,913.75,912.71,0.68887913]
[1768071103831,0.19051373,913.75,912.72,0.68887913]
[1768071104028,0.19051373,913.75,912.73,0.68887913]
[1768071104230,0.19051373,913.75,912.74,0.68887913]
[1768071104433,0.19051373,913.75,912.75,0.68887913]
[1768071104634,0.19051373,913.75,912.76,0.68887913]
[1768071104933,0.19051373,913.75,912.62,1.641]
[1768071105134,0.19051373,913.75,912.63,0.6893209]
[1768071105331,0.19051373,913.75,912.64,0.6893209]
[1768071105529,0.19051373,913.75,912.65,0.6893209]
[1768071105834,0.19051373,913.75,912.66,0.6893209]
[1768071106033,0.19051373,913.75,912.67,0.6893209]
[1768071106332,0.19051373,913.75,912.68,0.6893209]
[1768071106533,0.19051373,913.75,912.69,0.6893209]
[1768071106833,0.19051373,913.75,912.7,0.6893209]
[1768071107033,0.19051373,913.75,912.71,0.6893209]
[1768071107231,0.19051373,913.75,912.72,0.6893209]
[1768071107435,0.19051373,913.75,912.73,0.6893209]
[1768071107631,0.19051373,913.75,912.74,0.6893209]
[1768071107830,0.19051373,913.75,912.75,0.6893209]
[1768071108033,0.19051373,913.75,912.62,1.641]
[1768071108034,0.19051373,913.75,912.76,0.6893209]
[1768071108334,0.19051373,913.75,912.77,0.6893209]
[1768071108631,0.19051373,913.75,912.78,0.6893209]
[1768071108834,0.19051373,913.75,912.79,0.6893209]
[1768071109032,0.19051373,913.75,912.62,1.641]
[1768071109235,0.19051373,913.75,912.63,0.69034591]
[1768071109432,0.19051373,913.75,912.64,0.69034591]
[1768071109632,0.19051373,913.75,912.65,0.69034591]
[1768071109836,0.19051373,913.75,912.66,0.69034591]
[1768071110031,0.19051373,913.75,912.67,0.69034591]
[1768071110232,0.19051373,913.75,912.68,0.69034591]
[1768071110433,0.19051373,913.75,912.69,0.69034591]
[1768071110737,0.19051373,913.75,912.7,0.69034591]
[1768071110935,0.19051373,913.75,912.71,0.69034591]
[1768071111134,0.19051373,913.75,912.72,0.69034591]
[1768071111438,0.19051373,913.75,912.73,0.69034591]
[1768071111638,0.19051373,913.75,912.74,0.69034591]
[1768071111840,0.19051373,913.75,912.75,0.69034591]
[1768071112036,0.19051373,913.75,912.76,0.69034591]
[1768071112337,0.19051373,913.75,912.77,0.69034591]
[1768071112535,0.19051373,913.75,912.78,0.69034591]
[1768071112739,0.19051373,913.75,912.79,0.69034591]
[1768071112940,0.19051373,913.75,912.8,0.69034591]
[1768071113237,0.19051373,913.75,912.81,0.69034591]
[1768071113540,0.19051373,913.75,912.82,0.69034591]
[1768071113740,0.19051373,913.75,912.83,0.69034591]
[1768071114038,0.19051373,913.75,912.84,0.69034591]
[1768071114236,0.19051373,913.75,912.62,1.641]
[1768071114237,0.19051373,913.75,912.85,0.69034591]
[1768071114536,0.19051373,913.75,912.86,0.69034591]
[1768071114736,0.19051373,913.75,912.62,1.641]
[1768071114941,0.19051373,913.75,912.63,0.6896805]
[1768071115140,0.19051373,913.75,912.64,0.6896805]
[1768071115442,0.19051373,913.75,912.65,0.6896805]
[1768071115643,0.19051373,913.75,912.66,0.6896805]
[1768071115838,0.19051373,913.75,912.67,0.6896805]
[1768071116040,0.19051373,913.75,912.68,0.6896805]
[1768071116336,0.19051373,913.75,912.69,0.6896805]
[1768071116538,0.19051373,913.75,912.7,0.6896805]
[1768071116740,0.19051373,913.75,912.71,0.6896805]
[1768071116942,0.19051373,913.75,912.72,0.6896805]
[1768071117142,0.19051373,913.75,912.73,0.6896805]
[1768071117443,0.19051373,913.75,912.74,0.6896805]
[1768071117642,0.19051373,913.75,912.75,0.6896805]
[1768071117840,0.19051373,913.75,912.76,0.6896805]
[1768071118142,0.19051373,913.75,912.77,0.6896805]
[1768071118343,0.19051373,913.75,912.78,0.6896805]
[1768071118640,0.19051373,913.75,912.79,0.6896805]
[1768071118839,0.19051373,913.75,912.8,0.6896805]
[1768071119038,0.19051373,913.75,912.81,0.6896805]
[1768071119243,0.19051373,913.75,912.82,0.6896805]
[1768071119544,0.19051373,913.75,912.83,0.6896805]
[1768071119743,0.19051373,913.75,912.84,0.6896805]
[1768071119943,0.19051373,913.75,912.85,0.6896805]
[1768071120138,0.19051373,913.75,912.62,1.641]
[1768071120344,0.19051373,913.75,912.63,0.68937262]
[1768071120544,0.19051373,913.75,912.64,0.68937262]
[1768071120746,0.19051373,913.75,912.65,0.68937262]
[1768071120943,0.19051373,913.75,912.66,0.68937262]
[1768071121242,0.19051373,913.75,912.67,0.68937262]
[1768071121447,0.19051373,913.75,912.68,0.68937262]
[1768071121646,0.19051373,913.75,912.69,0.68937262]
[1768071121847,0.19051373,913.75,912.7,0.68937262]
[1768071122045,0.19051373,913.75,912.71,0.68937262]
[1768071122248,0.19051373,913.75,912.72,0.68937262]
[1768071122448,0.19051373,913.75,912.73,0.68937262]
[1768071122748,0.19051373,913.75,912.74,0.68937262]
[1768071122945,0.19051373,913.75,912.75,0.68937262]
[1768071123244,0.19051373,913.75,912.76,0.68937262]
[1768071123449,0.19051373,913.75,912.77,0.68937262]
[1768071123648,0.19051373,913.75,912.78,0.68937262]
[1768071123948,0.19051373,913.75,912.79,0.68937262]
[1768071124148,0.19051373,913.75,912.8,0.68937262]
[1768071124350,0.19051373,913.75,912.81,0.68937262]
[1768071124543,0.19051373,913.75,912.82,0.68937262]
[1768071124746,0.19051373,913.75,912.83,0.68937262]
[1768071124945,0.19051373,913.75,912.84,0.68937262]
[1768071125246,0.19051373,913.75,912.62,1.641]
[1768071125448,0.19051373,913.75,912.63,0.68926615]
[1768071125646,0.19051373,913.75,912.64,0.68926615]
[1768071125847,0.19051373,913.75,912.65,0.68926615]
[1768071126047,0.19051373,913.75,912.66,0.68926615]
[1768071126249,0.19051373,913.75,912.67,0.68926615]
[1768071126452,0.19051373,913.75,912.68,0.68926615]
[1768071126754,0.19051373,913.75,912.69,0.68926615]
[1768071126948,0.19051373,913.75,912.7,0.68926615]
[1768071127148,0.19051373,913.75,912.71,0.68926615]
[1768071127347,0.19051373,913.75,912.72,0.68926615]
[1768071127553,0.19051373,913.75,912.73,0.68926615]
[1768071127750,0.19051373,913.75,912.74,0.68926615]
[1768071127953,0.19051373,913.75,912.75,0.68926615]
[1768071128149,0.19051373,913.75,912.76,0.68926615]
[1768071128450,0.19051373,913.75,912.77,0.68926615]
[1768071128649,0.19051373,913.75,912.62,1.641]
[1768071128851,0.19051373,913.75,912.63,0.68941628]
[1768071129050,0.19051373,913.75,912.64,0.68941628]
[1768071129251,0.19051373,913.75,912.65,0.68941628]
[1768071129454,0.19051373,913.75,912.66,0.68941628]
[1768071129654,0.19051373,913.75,912.67,0.68941628]
[1768071129851,0.19051373,913.75,912.68,0.68941628]
[1768071130051,0.19051373,913.75,912.69,0.68941628]
[1768071130256,0.19051373,913.75,912.7,0.68941628]
[1768071130556,0.19051373,913.75,912.71,0.68941628]
[1768071130751,0.19051373,913.75,912.72,0.68941628]
[1768071130951,0.19051373,913.75,912.73,0.68941628]
[1768071131150,0.19051373,913.75,912.74,0.68941628]
[1768071131454,0.19051373,913.75,912.75,0.68941628]
[1768071131652,0.19051373,913.75,912.76,0.68941628]
[1768071131951,0.19051373,913.75,912.77,0.68941628]
[1768071132155,0.19051373,913.75,912.62,1.641]
[1768071132354,0.19051373,913.75,912.63,0.6897738]
[1768071132554,0.19051373,913.75,912.64,0.6897738]
[1768071132753,0.19051373,913.75,912.65,0.6897738]
[1768071133057,0.19051373,913.75,912.66,0.6897738]
[1768071133257,0.19051373,913.75,912.67,0.6897738]
[1768071133554,0.19051373,913.75,912.62,1.641]
[1768071133855,0.19051373,913.75,912.63,0.68978222]
[1768071134061,0.19051373,913.75,912.64,0.68978222]
[1768071134258,0.19051373,913.75,912.65,0.68978222]
[1768071134454,0.19051373,913.75,912.66,0.68978222]
[1768071134659,0.19051373,913.75,912.67,0.68978222]
[1768071134861,0.19051373,913.75,912.62,1.641]
[1768071135161,0.19051373,913.75,912.63,0.68978538]
[1768071135362,0.19051373,913.75,912.64,0.68978538]
[1768071135560,0.19051373,913.75,912.65,0.68978538]
[1768071135860,0.19051373,913.75,912.66,0.68978538]
[1768071136061,0.19051373,913.75,912.67,0.68978538]
[1768071136255,0.19051373,913.75,912.68,0.68978538]
[1768071136459,0.19051373,913.75,912.69,0.68978538]
[1768071136662,0.19051373,913.75,912.7,0.68978538]
[1768071136957,0.19051373,913.75,912.71,0.68978538]
[1768071137262,0.19051373,913.75,912.72,0.68978538]
[1768071137458,0.19051373,913.75,912.73,0.68978538]
[1768071137662,0.19051373,913.75,912.74,0.68978538]
[1768071137962,0.19051373,913.75,912.64,7.20268166]
[1768071138159,0.19051373,913.75,912.65,0.68984178]
[1768071138358,0.19051373,913.75,912.66,0.68984178]
[1768071138563,0.19051373,913.75,912.67,0.68984178]
[1768071138765,0.19051373,913.75,912.68,0.68984178]
[1768071138960,0.19051373,913.75,912.69,0.68984178]
[1768071139161,0.19051373,913.75,912.7,0.68984178]
[1768071139464,0.19051373,913.75,912.64,7.20268166]
[1768071139465,0.19051373,913.75,912.71,0.68984178]
[1768071139663,0.19051373,913.75,912.72,0.68984178]
[1768071139860,0.19051373,913.75,912.64,7.20268166]
[1768071140061,0.19051373,913.75,912.65,0.68982574]
[1768071140261,0.19051373,913.75,912.66,0.68982574]
[1768071140462,0.19051373,913.75,912.67,0.68982574]
[1768071140761,0.19051373,913.75,912.68,0.68982574]
[1768071140960,0.19051373,913.75,912.69,0.68982574]
[1768071141260,0.19051373,913.75,912.7,0.68982574]
[1768071141464,0.19051373,913.75,912.71,0.68982574]
[1768071141664,0.19051373,913.75,912.72,0.68982574]
[1768071141961,0.19051373,913.75,912.64,7.20268166]
[1768071142262,0.19051373,913.75,912.65,0.68979216]
[1768071142462,0.19051373,913.75,912.66,0.68979216]
[1768071142665,0.19051373,913.75,912.64,7.20268166]
[1768071142666,0.19051373,913.75,912.67,0.68979216]
[1768071142863,0.19051373,913.75,912.68,0.68979216]
[1768071143066,0.19051373,913.75,912.69,0.68979216]
[1768071143363,0.19051373,913.75,912.7,0.68979216]
[1768071143563,0.19051373,913.75,912.71,0.68979216]
[1768071143766,0.19051373,913.75,912.72,0.68979216]
[1768071143965,0.19051373,913.75,912.64,7.20268166]
[1768071144165,0.19051373,913.75,912.65,0.6897601]
[1768071144364,0.19051373,913.75,912.66,0.6897601]
[1768071144567,0.19051373,913.75,912.67,0.6897601]
[1768071144765,0.19051373,913.75,912.68,0.6897601]
[1768071144963,0.19051373,913.75,912.69,0.6897601]
[1768071145171,0.19051373,913.75,912.7,0.6897601]
[1768071145366,0.19051373,913.75,912.69,1.858]
[1768071145367,0.19051373,913.75,912.71,0.6897601]
[1768071145570,0.19051373,913.75,912.72,0.6897601]
[1768071145769,0.19051373,913.75,912.69,1.858]
[1768071183217,0.19051373,913.75,912.64,7.20268166]
[1768071185920,0.19051373,913.75,912.65,2.292]
[1768071206940,0.19051373,913.75,912.64,7.20268166]
[1768071210942,0.19051373,913.75,912.65,2.37]
[1768071228863,0.19051373,913.75,912.64,7.20268166]
[1768071231866,0.19051373,913.75,912.65,2.087]
[1768071237470,2.72679797,913.93,912.65,2.087]
[1768071237668,0.19057476,913.48,912.65,2.087]
[1768071237968,2.72679797,913.93,912.65,2.087]
[1768071238267,0.19057476,913.35,912.65,2.087]
[1768071238570,2.72679797,913.93,912.65,2.087]
[1768071238767,0.19057476,913.35,912.65,2.087]
[1768071238971,2.72679797,913.93,912.65,2.087]
[1768071239772,0.19057476,913.62,912.65,2.087]
[1768071289907,0.19057476,913.62,912.31,0.81750145]
[1768071290106,0.19057476,913.62,912.36,0.81750145]
[1768071290409,0.19057476,913.62,912.37,0.69075991]
[1768071290606,0.19057476,913.62,912.38,0.69075991]
[1768071290805,0.19057476,913.62,912.39,0.69075991]
[1768071291007,0.19057476,913.62,912.4,0.69075991]
[1768071291208,0.19057476,913.62,912.41,0.69075991]
[1768071291409,0.19057476,913.62,912.42,0.69075991]
[1768071291607,0.19057476,913.62,912.43,0.69075991]
[1768071291807,0.19057476,913.62,912.44,0.69075991]
[1768071292010,0.19057476,913.62,912.45,0.69075991]
[1768071292210,0.19057476,913.62,912.46,0.69075991]
[1768071292410,0.19057476,913.62,912.47,0.69075991]
[1768071292611,0.19057476,913.62,912.48,0.69075991]
[1768071292910,0.19057476,913.62,912.49,0.69075991]
[1768071293210,0.19057476,913.62,912.5,0.69075991]
[1768071293508,0.19057476,913.62,912.51,0.69075991]
[1768071293810,0.19057476,913.62,912.52,0.69075991]
[1768071294009,0.19057476,913.62,912.53,0.69075991]
[1768071294211,0.19057476,913.62,912.54,0.69075991]
[1768071294410,0.19057476,913.62,912.55,0.69075991]
[1768071294607,0.19057476,913.62,912.56,0.69075991]
[1768071294812,0.19057476,913.62,912.57,0.69075991]
[1768071295013,0.19057476,913.62,912.58,0.69075991]
[1768071295308,0.19057476,913.62,912.59,0.69075991]
[1768071295513,0.19057476,913.62,912.6,0.69075991]
[1768071295712,0.19057476,913.62,912.61,0.69075991]
[1768071295912,0.19057476,913.62,912.62,0.69075991]
[1768071296210,0.19057476,913.62,912.63,0.69075991]
[1768071296512,0.19057476,913.62,912.64,0.69075991]
[1768071296713,0.19057476,913.62,912.65,0.69075991]
[1768071296912,0.19057476,913.62,912.66,0.69075991]
[1768071297116,0.19057476,913.62,912.46,2.067]
[1768071297410,0.19057476,913.62,912.47,0.69008825]
[1768071297708,0.19057476,913.62,912.48,0.69008825]
[1768071297910,0.19057476,913.62,912.49,0.69008825]
[1768071298107,0.19057476,913.62,912.5,0.69008825]
[1768071298312,0.19057476,913.62,912.51,0.69008825]
[1768071298510,0.19057476,913.62,912.52,0.69008825]
[1768071298709,0.19057476,913.62,912.46,2.067]
[1768071298710,0.19057476,913.62,912.53,0.69008825]
[1768071299012,0.19057476,913.62,912.54,0.69008825]
[1768071299310,0.19057476,913.62,912.55,0.69008825]
[1768071299514,0.19057476,913.62,912.56,0.69008825]